Workbook

Sheet About
I15: Thermal Analysis Module | K15: (with HeatSink Design)
I16: 熱學分析模組 | K16: (帶散熱器設計)
I17: 热分析模组 | K17: (带散热器设计)
I18: PROGCODE | J18: 120
I19: VER | J19: 10
I20: FUNC | J20: -1
I21: CODE
I22: MAC | J22: 28:18:78:D2:C4:47
I23: Purchasing # | J23: A0016
I24: Computer+User | J24: CADMUSSURFACE-Cadmus Yuan
I25: (Please return MAC address for more functions)
I26: (請回傳MAC地址以獲得更高權限)
I29: Email: sales@ichijouriki.com
I30: www.ichijouriki.com
I31: https://www.facebook.com/ichijouriki

Sheet TC (hidden)
A1: 快速熱分析工具(TAM) | K1: 等效Rth | L1: Tj | M1: Tj | N1: 等效Rth
C2: 環境溫度 | I2: Rth | J2: 效率 | R2: Rth | S2: 效率 | U2: 環境溫度
D3: 材料 | V3: 材料
C4: 光源 | U4: 光源
G5: 面積 | H5: 厚度 | O5: k | P5: 面積 | Q5: 厚度
C7: 焊點 | U7: 焊點
C8: 焊點 | U8: 焊點
C10: PCB | U10: PCB
C11: 熱介材料 | U11: 熱介材料
D14: 材料 | E14: 幾何尺寸 | V14: 材料 | W14: 幾何尺寸
C15: 散熱器1 | U15: 散熱器1
C16: 散熱器2 | U16: 散熱器2
C17: Driver | U17: Driver
M29: Temp1 | Q29: Temp1
F30: solder | G30: 1/r | H30: 1/r | L30: Rth1 | M30: 33.16123772 | P30: Rth1 | Q30: 241.2671393 | U30: solder | V30: 1/r | W30: 1/r
G31: 0 | H31: 0 | K31: LS | L31: 0.17 | M31: 32.52940815 | O31: LS | P31: 0.275 | Q31: 233.9287209 | V31: 2.727242857 | W31: 0.9028114286
F32: sum 1/r | G32: 0 | H32: 0 | K32: SOLDER | L32: 0 | M32: 32.52940815 | O32: SOLDER | P32: 0.006886949349 | Q32: 233.7449416 | U32: sum 1/r | V32: 3.630054286 | W32: 0.275477974
K33: PCB | L33: 0.003703703704 | M33: 32.5156428 | O33: PCB | P33: 0.0116 | Q33: 233.4353937
G34: Rth | H34: Q | K34: TIM | L34: 0.2604166667 | M34: 31.54776663 | O34: TIM | P34: 0.006666666667 | Q34: 233.2574927 | U34: Rth | V34: Q
F35: HS1 | G35: 0.8997747324 | H35: 1.160137614 | K35: HS | L35: 0.8997747324 | M35: 28.20362382 | O35: HS | P35: 3.486763118 | Q35: 140.2126691 | T35: HS1 | U35: 3.486763118 | V35: 0.2958027731
F36: HS2 | G36: 2125.244043 | H36: 0.0005163181435 | K36: ENV | M36: 25 | O36: ENV | Q36: 50 | T36: HS2 | U36: 1525.449049 | V36: 0.0007479272153
G37: 0.8997747324 | H37: 1.160137614 | L37: 1.333895103 | P37: 3.786916734 | U37: 3.486763118 | V37: 0.2958027731
K38: Heat | L38: 3.716644498 | M38: 1.160137614 | P38: 26.68515769 | Q38: 0.2958027731

Sheet EN (hidden)
A1: Thermal Analysis Module (TAM) | K1: Eq. Rth | L1: Tj | M1: Tj | N1: Eq. Rth
C2: Env Temp | I2: Rth | J2: Efficiency | R2: Rth | S2: Efficiency | U2: Env Temp | V2: 50 | W2: ( C)
D3: Material | V3: Material
C4: LightSource | U4: LightSource
G5: Area | H5: Thickness
C7: Solder Joint | U7: Solder Joint
C8: Solder Joint | U8: Solder Joint
C10: PCB | U10: PCB
C11: TIM | U11: TIM
D14: Material | E14: Geometry | V14: Material | W14: Geometry
C15: HS1 | U15: HS1
C16: HS2 | U16: HS2
C17: Driver | U17: Driver
M29: Temp1 | Q29: Temp1
F30: solder | G30: 1/r | H30: 1/r | L30: Rth1 | M30: 37.11896468 | P30: Rth1 | Q30: 241.2671393 | U30: solder | V30: 1/r | W30: 1/r
G31: 3.2915e-05 | H31: 0.9028114286 | K31: LS | L31: 11 | M31: 29.78054632 | O31: LS | P31: 0.275 | Q31: 233.9287209 | V31: 2.727242857 | W31: 0.9028114286
F32: sum 1/r | G32: 0.9028443436 | H32: 1.107610639 | K32: SOLDER | L32: 1.107610639 | M32: 29.0416272 | O32: SOLDER | P32: 0.006886949349 | Q32: 233.7449416 | U32: sum 1/r | V32: 3.630054286 | W32: 0.275477974
K33: PCB | L33: 3.261578604 | M33: 26.86573372 | O33: PCB | P33: 0.0116 | Q33: 233.4353937
G34: Rth | H34: Q | K34: TIM | L34: 0.6666666667 | M34: 26.42098109 | O34: TIM | P34: 0.006666666667 | Q34: 233.2574927 | U34: Rth | V34: Q
F35: HS1 | G35: 1.070855367 | H35: 0.9441628633 | K35: HS | L35: 1.070855367 | M35: 25.70658248 | O35: HS | P35: 3.486763118 | Q35: 140.2126691 | T35: HS1 | U35: 3.486763118 | V35: 0.2958027731
F36: HS2 | G36: 2125.244043 | H36: 0.0005163181435 | K36: ENV | M36: 25 | O36: ENV | Q36: 50 | T36: HS2 | U36: 1525.449049 | V36: 0.0007479272153
G37: 1.070855367 | H37: 0.9441628633 | L37: 17.10671128 | P37: 3.786916734 | U37: 3.486763118 | V37: 0.2958027731
K38: Heat | L38: 0.6671289421 | M38: 0.9441628633 | P38: 26.68515769 | Q38: 0.2958027731

Sheet SC (hidden)
A1: 快速热分析工具(TAM) | K1: 等效Rth | L1: Tj | M1: Tj | N1: 等效Rth
C2: 环境温度 | J2: 效率 | S2: 效率 | U2: 环境温度 | V2: 50 | W2: ( C)
D3: 材料 | V3: 材料
C4: 光源 | U4: 光源
G5: 面积 | H5: 厚度 | P5: 面积 | Q5: 厚度
C7: 焊点 | U7: 焊点
C8: 焊点 | U8: 焊点
C10: PCB | U10: PCB
C11: 热介材料 | U11: 热介材料
D14: 材料 | E14: 几何尺寸 | V14: 材料 | W14: 几何尺寸
C15: 散热器1 | U15: 散热器1
C16: 散热器2 | U16: 散热器2
C17: Driver | U17: Driver

Sheet DB
F3: Thermal Analysis Module | H3: (with HeatSink Design)
F4: 熱學分析模組 | H4: (帶散熱器設計)
F5: 热分析模组 | H5: (带散热器设计)
C9: Database / 現有資料庫 | E9: Number of data / 資料個數
C10: LightSource | D10: 光源 | E10: 2
C11: Metal | D11: 金屬 | E11: 2
C12: PCB | D12: 電路板 | E12: 1
C13: TIM | D13: 熱介面材料 | E13: 1
C14: Driver | D14: 驅動 | E14: 2
C15: HeatSink | D15: 散熱器 | E15: 2

Sheet TM_S
A1: 快速熱分析工具(TAM) | K1: 等效Rth | L1: Tj | M1: Tj | N1: 等效Rth
C2: 環境溫度 | D2: 22.1 | E2: ( C) | F2: n | G2: If | H2: Vf | I2: Rth | J2: 效率 | K2: =+L37 -> 2.282768796 | L2: =+M35+L37*L38 -> 71.63483759 | M2: =+Q35+P37*P38 -> 243.8037115 | N2: =+P37 -> 3.872671407 | O2: n | P2: If | Q2: Vf | R2: Rth | S2: 效率 | U2: 環境溫度 | V2: 50 | W2: ( C)
D3: 材料 | G3: (mA) | H3: (V) | I3: (C/W) | J3: % | P3: (mA) | Q3: (V) | R3: (C/W) | S3: % | V3: 材料
C4: 光源 | D4: FC.TW-Luna60 | F4: 1 | G4: 1220 | H4: 33.8 | I4: 0.3 | J4: 64 | O4: 40 | P4: 200 | Q4: 6.671289421 | R4: 11 | S4: 50 | U4: 光源 | V4: 光源
F5: k | G5: 面積 | H5: 厚度 | O5: k | P5: 面積 | Q5: 厚度
F6: (W/mK) | G6: (mm2) | H6: (mm) | O6: (W/mK) | P6: (mm2) | Q6: (mm)
C7: 焊點 | F7: 0 | G7: 748.0225 | H7: 0.1 | O7: 58 | P7: 3.2915 | Q7: 0.07 | U7: 焊點 | V7: General-SAC
C8: 焊點 | F8: 0 | G8: 1e-06 | H8: 0.1 | O8: 10 | P8: 1.0896 | Q8: 0.07 | U8: 焊點 | V8: General-AgSP
G9: (a*b) | P9: (a*b)
C10: PCB | F10: 0 | G10: 1090.909091 | H10: 2 | O10: 33.73 | P10: =20*300/12 -> 500 | Q10: 0.116 | U10: PCB | V10: General-Ideal-MCPCB
C11: 熱介材料 | D11: CS-DSTape | F11: 1.2 | G11: =+G7*1.2 -> 897.627 | H11: 1 | O11: 2.56 | P11: 500 | Q11: 0.2 | U11: 熱介材料 | V11: Eporite-TIM1101
F12: Thermal | H12: Fin | O12: Thermal | Q12: Fin
F13: h | G13: k | H13: n | I13: b | J13: t | O13: h | P13: k | Q13: n | R13: b | S13: t
D14: 材料 | E14: 幾何尺寸 | F14: (W/m2K) | G14: (W/mK) | I14: (mm) | J14: (mm) | O14: (W/m2K) | P14: (W/mK) | R14: (mm) | S14: (mm) | V14: 材料 | W14: 幾何尺寸
C15: 散熱器1 | D15: General-Al5052 | E15: AJJ-COB11-1 | F15: 6 | G15: 138 | H15: 9 | I15: 1 | J15: 110 | O15: 12 | P15: 58 | Q15: 24 | R15: 5 | S15: 50 | U15: 散熱器1 | V15: General-SAC | W15: TS-Dot1
C16: 散熱器2 | D16: General-Al5052 | E16: AJJ-COB11-2 | F16: 7 | G16: 138 | H16: 9 | I16: 1 | J16: 70 | O16: 0 | P16: 0 | Q16: 15 | R16: 2 | S16: 90 | U16: 散熱器2 | V16: 散热器2
C17: Driver | D17: DRV-Test1 | E17: 0 | F17: (W) | H17: Block | Q17: Block | U17: Driver | V17: Driver | W17: 0 | X17: (W)
E18: (W) | H18: L | I18: l | J18: delta | Q18: L | R18: l | S18: delta | W18: (W)
H19: (mm) | I19: (mm) | J19: (mm) | Q19: (mm) | R19: (mm) | S19: (mm)
H20: 110 | I20: 50 | J20: 1 | Q20: 50 | R20: 10 | S20: 20
H21: 220 | I21: 25 | J21: 1 | Q21: 59 | R21: 38 | S21: 10
M29: Temp1 | Q29: Temp1
F30: solder | G30: 1/r | H30: 1/r | L30: Rth1 | M30: =+M31+L31*L38 -> 71.63483759 | P30: Rth1 | Q30: =+Q31+P31*P38 -> 243.8037115 | U30: solder | V30: 1/r | W30: 1/r
G31: =+F7*G7/1000/H7 -> 0 | H31: =+F8*G8/1000/H8 -> 0 | K31: LS | L31: =I4/F4 -> 0.3 | M31: =+M32+L32*L38 -> 67.18134959 | O31: LS | P31: =R4/O4 -> 0.275 | Q31: =+Q32+P32*P38 -> 236.4652931 | V31: =+O7*P7/1000/Q7 -> 2.727242857 | W31: =+O8*P8/1000/Q8 -> 0.1556571429
F32: sum 1/r | G32: =+G31+H31 -> 0 | H32: =IF(G32>0,1/G32,0) -> 0 | K32: SOLDER | L32: =+H32/F4 -> 0 | M32: =+M33+L33*L38 -> 67.18134959 | O32: SOLDER | P32: =+W32/O4 -> 0.008671823511 | Q32: =+Q33+P33*P38 -> 236.2338841 | U32: sum 1/r | V32: =+V31+W31 -> 2.8829 | W32: =IF(V32>0,1/V32,0) -> 0.3468729404
K33: PCB | L33: =IF(AND(F10>0,G10>0),H10/(F10*G10*0.001),0)/F4 -> 0 | M33: =+M34+L34*L38 -> 67.18134959 | O33: PCB | P33: =IF(AND(O10>0,P10>0),Q10/(O10*P10*0.001),0)/O4 -> 0.0001719537504 | Q33: =+Q34+P34*P38 -> 236.2292955
G34: Rth | H34: Q | K34: TIM | L34: =IF(AND(F11>0,G11>0),H11/(F11*G11*0.001),0)/F4 -> 0.928373738 | M34: =+M35+L35*L38 -> 53.39967859 | O34: TIM | P34: =IF(AND(O11>0,P11>0),Q11/(O11*P11*0.001),0)/O4 -> 0.00390625 | Q34: =+Q35+P35*P38 -> 236.1250566 | U34: Rth | V34: Q
F35: HS1 | G35: 1.59857352 | H35: 0.625807739 | K35: HS | L35: =+G37 -> 1.054395058 | M35: =M36+(L38/M38) -> 37.74722613 | O35: HS | P35: =+U37 -> 3.584921379 | Q35: =Q36+P38/Q38 -> 140.4608643 | T35: HS1 | U35: 3.584921379 | V35: 0.2949911864
F36: HS2 | G36: 3.09738098 | H36: 0.3229201617 | K36: ENV | M36: =+D2 -> 22.1 | O36: ENV | Q36: =+V2 -> 50 | T36: HS2 | U36: 1525.449049 | V36: 0.0007479272153
G37: 1.054395058 | H37: 0.9487279007 | L37: =SUM(L31:L35) -> 2.282768796 | P37: =SUM(P31:P35) -> 3.872671407 | U37: 3.584921379 | V37: 0.2949911864
K38: Heat | L38: =+E17+F4*G4*H4*(1-J4/100)/1000 -> 14.84496 | M38: =H37 -> 0.9487279007 | P38: =W17+O4*P4*Q4*(1-S4/100)/1000 -> 26.68515769 | Q38: =V37 -> 0.2949911864

Sheet TM_D (hidden)
A1: 快速熱分析工具(TAM) | K1: 等效Rth | L1: Tj | M1: Tj | N1: 等效Rth
C2: 環境溫度 | D2: 25 | E2: ( C) | F2: n | G2: If | H2: Vf | I2: Rth | J2: 效率 | K2: =+L37 -> 2.811882531 | L2: =+M35+L37*L38 -> 135.3785819 | M2: =+Q35+P37*P38 -> 188.9184889 | N2: =+P37 -> 1.418441235 | O2: n | P2: If | Q2: Vf | R2: Rth | S2: 效率 | U2: 環境溫度 | V2: 50 | W2: ( C)
D3: 材料 | G3: (mA) | H3: (V) | I3: (C/W) | J3: % | P3: (mA) | Q3: (V) | R3: (C/W) | S3: % | V3: 材料
C4: 光源 | D4: Nichia-NF2L757GT | F4: 44 | G4: 300 | H4: 3.164096146 | I4: 11 | J4: 50 | O4: 1 | P4: 2000 | Q4: 53.65927111 | R4: 0.17 | S4: 50 | U4: 光源 | V4: Citizen-CLU048
F5: k | G5: 面積 | H5: 厚度 | O5: k | P5: 面積 | Q5: 厚度
F6: (W/mK) | G6: (mm2) | H6: (mm) | O6: (W/mK) | P6: (mm2) | Q6: (mm)
C7: 焊點 | D7: General-SAC | F7: 58 | G7: 3.2915 | H7: 0.1 | O7: 0 | P7: 392 | Q7: 0.07 | U7: 焊點
C8: 焊點 | D8: General-SAC | F8: 58 | G8: 1.0896 | H8: 0.1 | O8: 0 | P8: 392 | Q8: 0.07 | U8: 焊點
G9: (a*b) | P9: (a*b)
C10: PCB | D10: General-Ideal-FR4 | F10: 0.2 | G10: 1090.909091 | H10: 3 | O10: 0 | P10: =20*300/12 -> 500 | Q10: 0.116 | U10: PCB
C11: 熱介材料 | D11: Eporite-TIM1101 | F11: 2.56 | G11: 1090.909091 | H11: 1 | O11: 6 | P11: 500 | Q11: 0.2 | U11: 熱介材料 | V11: Eporite-TIM3101
F12: Thermal | H12: Fin | O12: Thermal | Q12: Fin
F13: h | G13: k | H13: n | I13: b | J13: t | O13: h | P13: k | Q13: n | R13: b | S13: t
D14: 材料 | E14: 幾何尺寸 | F14: (W/m2K) | G14: (W/mK) | I14: (mm) | J14: (mm) | O14: (W/m2K) | P14: (W/mK) | R14: (mm) | S14: (mm) | V14: 材料 | W14: 幾何尺寸
C15: 散熱器1 | D15: Extruded-Al-A6063 | E15: General-Bar_T8 | F15: 4 | G15: 170 | H15: 0 | I15: 2 | J15: 1400 | O15: 12 | P15: 170 | Q15: 10 | R15: 2 | S15: 90 | U15: 散熱器1 | V15: Extruded-Al-A6063 | W15: General-CoB-II
C16: 散熱器2 | D16: General-SAC | F16: 0 | G16: 58 | H16: 0 | I16: 5 | J16: 50 | O16: 0 | P16: 58 | Q16: 15 | R16: 2 | S16: 90 | U16: 散熱器2 | V16: General-SAC
C17: Driver | D17: DRV-Test1 | E17: 1 | F17: (W) | H17: Block | Q17: Block | U17: Driver | V17: DRV-Test0 | W17: 0 | X17: (W)
E18: (W) | H18: L | I18: l | J18: delta | Q18: L | R18: l | S18: delta | W18: (W)
H19: (mm) | I19: (mm) | J19: (mm) | Q19: (mm) | R19: (mm) | S19: (mm)
H20: 80 | I20: 3 | J20: 3 | Q20: 59 | R20: 38 | S20: 10
H21: 50 | I21: 10 | J21: 3 | Q21: 59 | R21: 38 | S21: 10
M29: Temp1 | Q29: Temp1
F30: solder | G30: 1/r | H30: 1/r | L30: Rth1 | M30: =+M31+L31*L38 -> 135.3785819 | P30: Rth1 | Q30: =+Q31+P31*P38 -> 188.9184889 | U30: solder | V30: 1/r | W30: 1/r
G31: =+F7*G7/1000/H7 -> 1.90907 | H31: =+F8*G8/1000/H8 -> 0.631968 | K31: LS | L31: =I4/F4 -> 0.25 | M31: =+M32+L32*L38 -> 129.9078233 | O31: LS | P31: =R4/O4 -> 0.17 | Q31: =+Q32+P32*P38 -> 179.7964128 | V31: =+O7*P7/1000/Q7 -> 0 | W31: =+O8*P8/1000/Q8 -> 0
F32: sum 1/r | G32: =+G31+H31 -> 2.541038 | H32: =IF(G32>0,1/G32,0) -> 0.3935399628 | K32: SOLDER | L32: =+H32/F4 -> 0.008944090064 | M32: =+M33+L33*L38 -> 129.7120994 | O32: SOLDER | P32: =+W32/O4 -> 0 | Q32: =+Q33+P33*P38 -> 179.7964128 | U32: sum 1/r | V32: =+V31+W31 -> 0 | W32: =IF(V32>0,1/V32,0) -> 0
K33: PCB | L33: =IF(AND(F10>0,G10>0),H10/(F10*G10*0.001),0)/F4 -> 0.3125 | M33: =+M34+L34*L38 -> 122.8736511 | O33: PCB | P33: =IF(AND(O10>0,P10>0),Q10/(O10*P10*0.001),0)/O4 -> 0 | Q33: =+Q34+P34*P38 -> 179.7964128
G34: Rth | H34: Q | K34: TIM | L34: =IF(AND(F11>0,G11>0),H11/(F11*G11*0.001),0)/F4 -> 0.008138020833 | M34: =+M35+L35*L38 -> 122.6955665 | O34: TIM | P34: =IF(AND(O11>0,P11>0),Q11/(O11*P11*0.001),0)/O4 -> 0.06666666667 | Q34: =+Q35+P35*P38 -> 176.2191281 | U34: Rth | V34: Q
F35: HS1 | G35: 2.23230042 | H35: 0.448 | K35: HS | L35: =+G37 -> 2.23230042 | M35: =M36+(L38/M38) -> 73.84605929 | O35: HS | P35: =+U37 -> 1.181774569 | Q35: =Q36+P38/Q38 -> 112.8059661 | T35: HS1 | U35: 1.181774569 | V35: 0.854365826
F36: HS2 | G36: 40000.02069 | H36: 2.5e-05 | K36: ENV | M36: =+D2 -> 25 | O36: ENV | Q36: =+V2 -> 50 | T36: HS2 | U36: 928.8656408 | V36: 0.001076878559
G37: 2.23230042 | H37: 0.448 | L37: =SUM(L31:L35) -> 2.811882531 | P37: =SUM(P31:P35) -> 1.418441235 | U37: 1.181774569 | V37: 0.854365826
K38: Heat | L38: =+E17+F4*G4*H4*(1-J4/100)/1000 -> 21.88303456 | M38: =H37 -> 0.448 | P38: =W17+O4*P4*Q4*(1-S4/100)/1000 -> 53.65927111 | Q38: =V37 -> 0.854365826

Sheet LSI (hidden)
A1: Light source information Import
A2: 光源數據輸入
A3: 光源数据输入 | X3: drawing
D4: Supplier | F4: Nichia | H4: PAD1 | O4: Efficacy | S4: Vf-If
D5: Type | F5: SMD_3030 | H5: x | I5: (mm) | J5: 1.45 | O5: If | P5: 65 | S5: If | T5: 65 | X5: Eff-If | AB5: Vf-If
D6: Name | F6: NF2L757GT | H6: y | I6: (mm) | J6: 2.27 | O6: Vf | P6: 2.75 | S6: Lm | T6: 33.7
W7: 0 | X7: =+O9 -> 65 | Y7: =$O$11*EXP(-$O$12*X7) -> 159.4405594 | AA7: 0 | AB7: =+S9 -> 65 | AC7: =+$S$12*AB7^$S$11 -> 2.75
D8: If | E8: (mA) | F8: 180 | H8: PAD2 | O8: Eff-If | P8: Lm | Q8: Eff | T8: Vf | W8: 1 | X8: =+$X$7+W8*($X$17-$X$7)/10 -> 82.5 | Y8: 157.4320911 | AA8: 1 | AB8: =+$AB$7+AA8*($AB$17-$AB$7)/10 -> 82.5 | AC8: =+$S$12*AB8^$S$11 -> 2.810792505
D9: Vf | E9: (V) | F9: 3 | H9: x | I9: (mm) | J9: 0.48 | N9: If | O9: 65 | P9: 28.5 | Q9: =+P9/O9/T9*1000 -> 159.4405594 | R9: If | S9: 65 | T9: 2.75 | W9: 2 | X9: =+$X$7+W9*($X$17-$X$7)/10 -> 100 | Y9: 155.4489234 | AA9: 2 | AB9: =+$AB$7+AA9*($AB$17-$AB$7)/10 -> 100 | AC9: 2.860823773
H10: y | I10: (mm) | J10: 2.27 | O10: 240 | P10: =+P9/0.9*3.3 -> 104.5 | Q10: =+P10/O10/T10*1000 -> 140.4569892 | S10: 240 | T10: 3.1 | W10: 3 | X10: 117.5 | Y10: 153.4907376 | AA10: 3 | AB10: 117.5 | AC10: 2.903451256
D11: Rth | E11: (C/W) | F11: 11 | N11: A | O11: =Q9/(EXP(-O12*O9)) -> 167.1275237 | R11: D | S11: =LOG10(T9/S12)/LOG10(S9) -> 0.09171372109 | W11: 4 | X11: 135 | Y11: 151.557219 | AA11: 4 | AB11: 135 | AC11: 2.940657879
D12: Efficiency | E12: (%) | F12: 50 | N12: B | O12: =-LN(Q9/Q10)/(O9-O10) -> 0.0007243992522 | R12: C | S12: =10^S14 -> 1.875269386 | W12: 5 | X12: 152.5 | Y12: 149.6480569 | AA12: 5 | AB12: 152.5 | AC12: 2.973715834
S13: =+LOG10(S9)/LOG10(S10) -> 0.7616606984 | W13: 6 | X13: 170 | Y13: 147.7629445 | AA13: 6 | AB13: 170 | AC13: 3.003491686
S14: =(S13*LOG10(T10)-LOG10(T9))/(-1+S13) -> 0.2730636639 | W14: 7 | X14: 187.5 | Y14: 145.9015788 | AA14: 7 | AB14: 187.5 | AC14: 3.030603138
W15: 8 | X15: 205 | Y15: 144.0636606 | AA15: 8 | AB15: 205 | AC15: 3.055506506
W16: 9 | X16: 222.5 | Y16: 142.2488946 | AA16: 9 | AB16: 222.5 | AC16: 3.078548743
W17: 10 | X17: =+O10 -> 240 | Y17: 140.4569892 | AA17: 10 | AB17: =+S10 -> 240 | AC17: 3.1
C21: Supplier | D21: Type | E21: LS | F21: Code | G21: If | H21: Vf | I21: Rth | J21: Efficiency | K21: A | L21: B | M21: C | N21: D | O21: PAD1_X | P21: PAD1_Y | Q21: PAD2_X | R21: PAD2_Y
C22: =+F4 -> Nichia | D22: =+F5 -> SMD_3030 | E22: =+F6 -> NF2L757GT | F22: =+C22 & "-" & E22 -> Nichia-NF2L757GT | G22: =+F8 -> 180 | H22: =+F9 -> 3 | I22: =+F11 -> 11 | J22: =+F12 -> 50 | K22: =+O11 -> 167.1275237 | L22: =+O12 -> 0.0007243992522 | M22: =+S12 -> 1.875269386 | N22: =+S11 -> 0.09171372109 | O22: =+J5 -> 1.45 | P22: =+J6 -> 2.27 | Q22: =+J9 -> 0.48 | R22: =+J10 -> 2.27

Sheet DB_LSI (hidden)
B2: Supplier | C2: Type | D2: LS | E2: Code | F2: If | G2: Vf | H2: Rth | I2: Efficiency | J2: A | K2: B | L2: C | M2: D | N2: PAD1_X | O2: PAD1_Y | P2: PAD2_X | Q2: PAD2_Y
F3: (mA) | G3: (V) | H3: (C/W) | I3: %
B4: Nichia | C4: SMD_3030 | D4: NF2L757GT | E4: Nichia-NF2L757GT | F4: 180 | G4: 3 | H4: 11 | I4: 50 | J4: 167.1275237 | K4: 0.0007243992522 | L4: 1.875269386 | M4: 0.09171372109 | N4: 1.45 | O4: 2.27 | P4: 0.48 | Q4: 2.27
B5: FC.TW | C5: COB | D5: Luna60 | E5: FC.TW-Luna60 | F5: 1700 | G5: 36.6 | H5: 0.3 | I5: 64 | J5: 185.6094057 | K5: 0.0001499829931 | L5: 27.13473155 | M5: 0.03090733943 | N5: 27.35 | O5: 27.35 | P5: 0.001 | Q5: 0.001

Sheet DB_METAL (hidden)
F1: =COUNT(F4:F15) -> 2
B2: Supplier | C2: Type | D2: Mat | E2: Code | F2: k
F3: (W/mK)
B4: General | C4: solder paste | D4: AgSP | E4: =B4& "-"&D4 -> General-AgSP | F4: 10
B5: General | C5: Al | D5: Al5052 | E5: General-Al5052 | F5: 138

Sheet DB_PCB (hidden)
F1: =COUNT(F4:F14) -> 1
B2: Supplier | C2: Type | D2: Mat | E2: Code | F2: k
F3: (W/mK)
B4: General | C4: MCPCB | D4: Ideal-MCPCB | E4: =B4& "-"&D4 -> General-Ideal-MCPCB | F4: 33.73

Sheet DB_TIM (hidden)
F1: =COUNT(F4:F16) -> 1
B2: Supplier | C2: Type | D2: Mat | E2: Code | F2: k
F3: (W/mK)
B4: CS | C4: TIM | D4: DSTape | E4: =B4& "-"&D4 -> CS-DSTape | F4: 1.5

Sheet DB_DRV (hidden)
F1: =COUNT(F4:F170) -> 2
B2: Supplier | C2: Type | D2: Mat | E2: Code | F2: Q
F3: W
B4: DRV | C4: Driver | D4: Test1 | E4: =B4& "-"&D4 -> DRV-Test1 | F4: 2 | H4: 輸入：散熱功率＝總功率＊（1-效率）
B5: DRV | C5: Driver | D5: Test0 | E5: =B5& "-"&D5 -> DRV-Test0 | F5: 0

Sheet DB_HS (hidden)
F1: =COUNT(F4:F210) -> 2
B2: Supplier/App | C2: Product | D2: Code | E2: Code | F2: n | G2: b | H2: t | I2: L | J2: l | K2: delta
G3: (mm) | H3: (mm) | I3: (mm) | J3: (mm) | K3: (mm)
B4: AJJ | C4: COB | D4: COB11-1 | E4: =B4& "-"&D4 -> AJJ-COB11-1 | F4: 9 | G4: 1 | H4: 110 | I4: 110 | J4: 50 | K4: 1
B5: AJJ | C5: COB | D5: COB11-2 | E5: AJJ-COB11-2 | F5: 9 | G5: 1 | H5: 70 | I5: 220 | J5: 25 | K5: 1

Sheet HS_D (hidden)
A1: HS Calculation | B1: Heat transfer coefficient | F1: Geometry
R2: e | S2: Rj | T2: 1 | U2: 2 | V2: 3 | W2: Q | X2: Tf
B3: Fin | C3: bottom | D3: Fin Tip | E3: k | F3: Number of Fins | G3: Length | H3: Width | I3: Height | J3: Fin width | K3: Block | L3: heatsink bottom area | Q3: case1 | R3: =G11 ->  | S3: =O11 ->  | T3: =+$F$7*SQRT($B$7*$E$7*C11*B11) ->  | U3: =TANH(SQRT($B$7*B11/($E$7*C11))*$I$7) ->  | V3: =$C$7*($L$7-$F$7*C11) ->  | W3: =#REF! ->  | X3: =+W3/(T3*U3+V3)+#REF! -> 
B4: (W/m2K) | E4: (W/mK) | G4: mm | H4: mm | I4: mm | J4: mm | L4: mm2 | Q4: case2 | R4: =J13 ->  | S4: =Y13 ->  | T4: =+$F$7*SQRT($B$7*$E$7*C13*B13) ->  | U4: =(TANH(D13)+E13)/(1+E13*TANH(D13)) ->  | V4: =$C$7*($L$7-$F$7*C13) ->  | W4: =#REF! ->  | X4: =+W4/(T4*U4+V4)+#REF! -> 
B5: hf | C5: hb | D5: he | E5: k | F5: n/a | G5: L | H5: t | I5: l | J5: b | K5: delta | L5: A | Q5: case3 | R5: =J15 ->  | S5: =Y15 ->  | T5: =+$F$7*SQRT($B$7*$E$7*C15*B15) ->  | U5: =TANH(SQRT($B$7*B15/($E$7*C15))*$I$7) ->  | V5: =$C$7*($L$7-$F$7*C15) ->  | W5: =#REF! ->  | X5: =+W5/(T5*U5+V5)+#REF! -> 
B6: =#REF! ->  | C6: =B6 ->  | D6: =C6 ->  | E6: =#REF! ->  | F6: =#REF! ->  | G6: =#REF! ->  | H6: =#REF! ->  | I6: =#REF! ->  | J6: =#REF! ->  | K6: =#REF! ->  | L6: =H6*G6 ->  | Q6: case4 | R6: =J17 ->  | S6: =Y17 ->  | T6: =+$F$7*SQRT($B$7*$E$7*C17*B17) ->  | U6: =(TANH(D17)+E17)/(1+E17*TANH(D17)) ->  | V6: =$C$7*($L$7-$F$7*C17) ->  | W6: =#REF! ->  | X6: =+W6/(T6*U6+V6)+#REF! -> 
B7: =+B6 ->  | C7: =+C6 ->  | D7: =+D6 ->  | E7: =+E6 ->  | F7: =+F6 ->  | G7: =+G6*0.001 ->  | H7: =+H6*0.001 ->  | I7: =+I6*0.001 ->  | J7: =+J6*0.001 ->  | K7: =+K6*0.001 ->  | L7: =+G7*H7 -> 
S8: =AVERAGE(S3:S6) ->  | T8: =AVERAGE(T3:T6) ->  | U8: =AVERAGE(U3:U6) ->  | X8: =AVERAGE(X3:X6) -> 
A10: case 1 | B10: p | C10: a | D10: m | G10: e | H10: v | I10: D | J10: S | K10: Bi | L10: H | N10: yida | O10: R | V10: =+T8*U8+V8 -> 
B11: =2*H7 ->  | C11: =+J7*H7 ->  | D11: =SQRT(B6*B11/(E6*C11)) ->  | E11: =F7*SQRT(B7*C11*E7*B11)/(C7*L7) ->  | F11: =TANH(SQRT(B7*B11/(E7*C11))*I7) ->  | G11: =E11*F11+1-F7*C11/(L7) ->  | H11: =J7*H7*G7 ->  | I11: =F7/(L7) *SQRT(H11*H7) ->  | J11: =I7*SQRT( (H7)/H11) ->  | K11: =2*B7/E7*SQRT(H11/(H7)) ->  | L11: =D6/B6 ->  | M11: =2*I11*J11/L11+1-I11/J11 ->  | N11: =G11/M11 ->  | O11: =(1/L7)*(1/(G11*C7)+K7/E7) -> 
A12: case 2 | B12: p | C12: a | D12: M | E12: N | J12: e | K12: v | L12: D | M12: S | N12: Bi | O12: H | P12: Hb | Q12: He | R12: E | S12: I | T12: J | U12: F | V12: K | X12: yida | Y12: Rj
B13: =2*$H$7 ->  | C13: =+$J$7*$H$7 ->  | D13: =SQRT(($B$7*B13)/($E$7*C13))*$I$7 ->  | E13: =+($D$7*$I$7)/(D13*$E$7) ->  | F13: =SQRT($B$7*B13/($E$7*C13)) ->  | G13: =$F$7*SQRT($B$7*$E$7*C13*B13)/($C$7*$L$7) ->  | H13: =TANH(F13*$I$7)+$D$7/(F13*$E$7) ->  | I13: =1+$D$7/(F13*$E$7)*TANH(F13*$I$7) ->  | J13: =+G13*H13/I13+1-$F$7*C13/$L$7 ->  | K13: =$J$7*$H$7*$G$7 ->  | L13: =$F$7/($L$7) *SQRT(K13*$H$7) ->  | M13: =$I$7*SQRT( ($H$7)/K13) ->  | N13: =2*$B$7/$E$7*SQRT(K13/($H$7)) ->  | O13: =$D$7/$B$7 ->  | P13: =+$C$7/$B$7 ->  | Q13: =+$D$7/$B$7 ->  | R13: =2*L13/(SQRT(N13)*P13) ->  | S13: =+Q13/P13*L13 ->  | T13: =0.5*SQRT(N13)*Q13 ->  | U13: =SQRT(N13) ->  | V13: =SQRT(K13/$H$7^3) ->  | W13: =2*L13*M13/O13+1-(1+$D$7/$C$7)*(L13/M13) ->  | X13: =+J13/W13 ->  | Y13: =(1/$L$7)*(1/(J13*$C$7)+$K$7/$E$7) -> 
A14: case 3 | B14: p | C14: a | D14: M | E14: N | J14: e | K14: v | L14: D | M14: S | N14: Bi | O14: H | P14: Hb | Q14: He | R14: E | S14: I | T14: J | U14: F | X14: yida | Y14: Rj
B15: =2*($H$7+$J$7) ->  | C15: =+$J$7*$H$7 ->  | D15: =SQRT(($B$7*B15)/($E$7*C15))*$I$7 ->  | E15: =+($D$7*$I$7)/(D15*$E$7) ->  | F15: =SQRT($B$7*B15/($E$7*C15)) ->  | H15: =+F7*SQRT(B7*E7*C15*B15)/(C7*L7) ->  | I15: =TANH(SQRT(B7*B15/(E7*C15))*I7) ->  | J15: =+H15*I15+1-F7*C15/L7 ->  | K15: =$J$7*$H$7*$G$7 ->  | L15: =$F$7/($L$7) *SQRT(K15*$H$7) ->  | M15: =$I$7*SQRT( ($H$7)/K15) ->  | N15: =2*$B$7/$E$7*SQRT(K15/($H$7)) ->  | O15: =$D$7/$B$7 ->  | P15: =+$C$7/$B$7 ->  | Q15: =+$D$7/$B$7 ->  | R15: =2*L15/(SQRT(N15)*P15) ->  | S15: =+Q15/P15*L15 ->  | T15: =0.5*SQRT(N15)*Q15 ->  | U15: =SQRT(N15) ->  | V15: =SQRT(K15/$H$7^3) ->  | W15: =2*L15*V15/O15+2*L15*M15/O15+1-L15/M15 ->  | X15: =+J15/W15 ->  | Y15: =(1/$L$7)*(1/(J15*$C$7)+$K$7/$E$7) -> 
A16: case 4 | B16: p | C16: a | D16: M | E16: N | J16: e | K16: v | L16: D | M16: S | N16: Bi | O16: H | P16: Hb | Q16: He | R16: E | S16: I | T16: J | U16: F | X16: yida | Y16: Rj
B17: =2*($H$7+$J$7) ->  | C17: =+$J$7*$H$7 ->  | D17: =SQRT(($B$7*B17)/($E$7*C17))*$I$7 ->  | E17: =+($D$7*$I$7)/(D17*$E$7) ->  | F17: =SQRT($B$7*B17/($E$7*C17)) ->  | G17: =$F$7*SQRT($B$7*$E$7*C17*B17)/($C$7*$L$7) ->  | H17: =TANH(F17*$I$7)+$D$7/(F17*$E$7) ->  | I17: =1+$D$7/(F17*$E$7)*TANH(F17*$I$7) ->  | J17: =+G17*H17/I17+1-$F$7*C17/$L$7 ->  | K17: =$J$7*$H$7*$G$7 ->  | L17: =$F$7/($L$7) *SQRT(K17*$H$7) ->  | M17: =$I$7*SQRT( ($H$7)/K17) ->  | N17: =2*$B$7/$E$7*SQRT(K17/($H$7)) ->  | O17: =$D$7/$B$7 ->  | P17: =+$C$7/$B$7 ->  | Q17: =+$D$7/$B$7 ->  | R17: =2*L17/(SQRT(N17)*P17) ->  | S17: =+Q17/P17*L17 ->  | T17: =0.5*SQRT(N17)*Q17 ->  | U17: =SQRT(N17) ->  | V17: =SQRT(K17/$H$7^3) ->  | W17: =2*L17*M17/O17+1-(1+$D$7/$C$7)*(L17/M17)+2*L17*V17/O17 ->  | X17: =+J17/W17 ->  | Y17: =(1/$L$7)*(1/(J17*$C$7)+$K$7/$E$7) -> 
